bitfinex/quotes_BTCUSD_20220207
["timestamp","ask_amount","ask_price","bid_price","bid_amount"]
[1644216585270,0.00012955,42769.0,42768.0,0.56624918]
[1644216585916,0.00012955,42769.0,42768.0,0.58724918]
[1644216586719,0.00901276,42775.0,42768.0,0.58738692]
[1644216586917,0.00027759,42775.0,42771.0,0.3817975]
[1644216587118,0.00928957,42776.0,42771.0,0.3817975]
[1644216587821,0.00956716,42776.0,42771.0,0.3817975]
[1644216588118,0.00901276,42776.0,42771.0,0.3987975]
[1644216588318,0.00925663,42776.0,42771.0,0.3987975]
[1644216589218,0.00873517,42776.0,42771.0,0.3987975]
[1644216589418,0.00925663,42776.0,42771.0,0.3987975]
[1644216589868,0.00925663,42776.0,42771.0,0.4157975]
[1644216590072,0.00712398,42776.0,42772.0,0.04339748]
[1644216590371,0.00027759,42778.0,42772.0,0.04339748]
[1644216590372,0.00660252,42777.0,42772.0,0.04339748]
[1644216590768,0.00052147,42776.0,42772.0,0.04339748]
[1644216591268,0.00079906,42776.0,42772.0,0.04339748]
[1644216591570,0.00027759,42776.0,42772.0,0.04339748]
[1644216591767,0.00660252,42777.0,42772.0,0.04339748]
[1644216591969,0.01080415,42776.0,42772.0,0.05939748]
[1644216592172,0.20020775,42784.0,42777.0,0.75]
[1644216592375,0.00870831,42786.0,42783.0,0.04339748]
[1644216592571,0.000278,42785.0,42780.0,0.2002627]
[1644216592769,0.00660252,42786.0,42784.0,0.04339748]
[1644216592972,0.4993,42798.0,42784.0,0.23358091]
[1644216592973,0.000278,42785.0,42784.0,0.23358091]
[1644216593171,0.000278,42786.0,42785.0,0.33806944]
[1644216593424,0.00660252,42787.0,42785.0,0.33806944]
[1644216593425,0.00688052,42787.0,42785.0,0.40902776]
[1644216593824,0.000278,42787.0,42785.0,0.40902776]
[1644216594023,0.000278,42792.0,42785.0,0.42802776]
[1644216594228,0.00660252,42787.0,42785.0,0.42802776]
[1644216594427,0.00660252,42787.0,42785.0,0.73083038]
[1644216594628,0.00688052,42787.0,42785.0,0.73083038]
[1644216595130,0.00688052,42787.0,42785.0,0.6684329]
[1644216595326,0.00688052,42787.0,42785.0,0.71183038]
[1644216595529,0.000278,42787.0,42785.0,0.71183038]
[1644216595727,0.00660252,42787.0,42786.0,0.25531413]
[1644216595929,0.00688052,42787.0,42786.0,0.25531413]
[1644216596130,0.00660252,42787.0,42786.0,0.25531413]
[1644216596630,0.001704,42788.0,42786.0,0.25517936]
[1644216596828,0.001704,42788.0,42785.0,0.47042524]
[1644216597074,0.001982,42788.0,42785.0,0.72588049]
[1644216597269,0.001982,42788.0,42785.0,0.70788049]
[1644216597470,0.00660252,42787.0,42785.0,0.40902776]
[1644216597669,0.00688052,42787.0,42786.0,0.32713]
[1644216597870,0.00660252,42787.0,42786.0,0.32713]
[1644216598271,0.001982,42788.0,42786.0,0.32713]
[1644216598470,0.001982,42788.0,42787.0,0.25624006]
[1644216598672,0.001704,42788.0,42785.0,0.42902776]
[1644216598872,0.001982,42788.0,42785.0,0.09095832]
[1644216599071,0.00660252,42787.0,42785.0,0.09095832]
[1644216599271,0.00660252,42787.0,42785.0,0.34701163]
[1644216599471,0.00688052,42787.0,42785.0,0.09095832]
[1644216599672,0.00013518,42786.0,42785.0,0.09095832]
[1644216599872,0.00013518,42786.0,42785.0,0.11095832]
[1644216601333,0.00013518,42786.0,42785.0,0.07095832]
[1644216601920,0.00013518,42786.0,42785.0,0.08995832]
[1644216603323,0.00013518,42786.0,42785.0,0.07095832]
[1644216603921,0.00013518,42786.0,42785.0,0.08995832]
[1644216604223,0.00013518,42786.0,42785.0,0.019]
[1644216605170,0.00013518,42786.0,42785.0,0.32713]
[1644216605371,0.00013518,42786.0,42785.0,0.62144687]
[1644216605974,0.00013518,42786.0,42785.0,0.64044687]
[1644216607175,0.00013518,42786.0,42785.0,0.71780281]
[1644216607774,0.00013518,42786.0,42785.0,0.69880281]
[1644216607974,0.00013518,42786.0,42785.0,0.76120029]
[1644216608623,0.00013518,42786.0,42785.0,0.71780281]
[1644216608820,0.00013518,42786.0,42785.0,0.4297093]
[1644216609221,0.00013518,42786.0,42785.0,0.4107093]
[1644216609423,0.00013518,42786.0,42785.0,0.32359294]
[1644216610024,0.00013518,42786.0,42785.0,0.34259294]
[1644216610224,0.00013518,42786.0,42785.0,0.09635594]
[1644216610423,0.0067377,42786.0,42785.0,0.09635594]
[1644216611231,0.00013518,42786.0,42785.0,0.07735594]
[1644216611426,0.0067377,42786.0,42785.0,0.07735594]
[1644216612078,0.0067377,42786.0,42785.0,0.09635594]
[1644216612273,0.00013518,42786.0,42785.0,0.09635594]
[1644216613176,0.00013518,42786.0,42785.0,0.07735594]
[1644216613576,0.0067377,42786.0,42785.0,0.12075342]
[1644216613780,0.0067377,42786.0,42785.0,0.07735594]
[1644216613976,0.0067377,42786.0,42785.0,0.09635594]
[1644216614778,0.0067377,42786.0,42785.0,0.34259294]
[1644216615178,0.0067377,42786.0,42785.0,0.32359294]
[1644216615821,0.00013518,42786.0,42785.0,0.32359294]
[1644216616020,0.00013518,42786.0,42785.0,0.38599042]
[1644216616621,0.00013518,42786.0,42785.0,0.34259294]
[1644216617020,0.00013518,42786.0,42785.0,0.38599042]
[1644216617221,0.00013518,42786.0,42785.0,0.32359294]
[1644216618021,0.00013518,42786.0,42785.0,0.34259294]
[1644216618520,0.00013518,42786.0,42785.0,0.38599042]
[1644216618925,0.00013518,42786.0,42785.0,0.34259294]
[1644216619323,0.00013518,42786.0,42785.0,0.36699042]
[1644216619572,4.196e-05,42786.0,42785.0,0.36699042]
[1644216619773,4.196e-05,42786.0,42785.0,0.46699042]
[1644216619972,4.196e-05,42786.0,42785.0,0.48399042]
[1644216619973,0.00604196,42786.0,42785.0,0.48399042]
[1644216621173,4.196e-05,42786.0,42785.0,0.46699042]
[1644216621775,4.196e-05,42786.0,42785.0,0.70068627]
[1644216621977,4.196e-05,42786.0,42785.0,0.72368627]
[1644216622175,4.196e-05,42786.0,42785.0,0.48999042]
[1644216622376,4.196e-05,42786.0,42785.0,0.38999042]
[1644216623176,4.196e-05,42786.0,42785.0,0.36699042]
[1644216623422,4.196e-05,42786.0,42785.0,0.32359294]
[1644216623922,0.000278,42787.0,42786.0,0.00041804]
[1644216624127,0.001704,42788.0,42786.0,0.50805857]
[1644216624325,0.00233323,42788.0,42787.0,0.3515981]
[1644216624524,0.00233323,42788.0,42787.0,0.5978211]
[1644216625126,0.00233323,42788.0,42787.0,0.87050158]
[1644216625325,0.001704,42788.0,42787.0,0.87050158]
[1644216625925,0.001704,42788.0,42787.0,0.89350158]
[1644216626125,0.001704,42788.0,42787.0,1.03689906]
[1644216626527,0.001704,42788.0,42787.0,1.03189906]
[1644216626730,0.001704,42788.0,42787.0,1.08189906]
[1644216627376,0.001704,42788.0,42787.0,1.05889906]
[1644216627774,0.001704,42788.0,42787.0,1.00889906]
[1644216627975,0.001704,42788.0,42787.0,1.03189906]
[1644216628976,0.001704,42788.0,42787.0,0.93189906]
[1644216629380,0.001704,42788.0,42787.0,0.96550158]
[1644216629576,0.001704,42788.0,42787.0,0.6928211]
[1644216629976,0.00387032,42793.0,42787.0,0.7178211]
[1644216630180,0.00013077,42788.0,42787.0,0.371223]
[1644216630376,0.00013077,42788.0,42787.0,0.271223]
[1644216630577,0.00013077,42788.0,42787.0,0.63659173]
[1644216631222,0.00013077,42788.0,42787.0,0.61159173]
[1644216631924,0.00013077,42788.0,42787.0,0.60971844]
[1644216632121,0.00013077,42788.0,42787.0,0.63371844]
[1644216632322,0.00013077,42788.0,42787.0,0.61906482]
[1644216633323,0.00013077,42788.0,42787.0,0.59506482]
[1644216634123,0.00013077,42788.0,42787.0,0.62006482]
[1644216634974,0.00013077,42788.0,42787.0,0.6661945]
[1644216635176,0.00040929,42791.0,42787.0,0.39684479]
[1644216635376,0.00013077,42791.0,42790.0,0.04612968]
[1644216635577,0.00040929,42791.0,42790.0,0.244329]
[1644216635775,0.00013077,42791.0,42790.0,0.244329]
[1644216635976,0.00013077,42791.0,42790.0,0.265329]
[1644216637377,0.00013077,42791.0,42790.0,0.244329]
[1644216637977,0.00013077,42791.0,42790.0,0.265329]
[1644216638829,0.26894708,42789.0,42788.0,0.25034293]
[1644216639629,0.26894708,42789.0,42788.0,0.50852413]
[1644216640031,0.26894708,42789.0,42788.0,0.53052413]
[1644216641433,0.26894708,42789.0,42788.0,0.2581812]
[1644216642074,0.26894708,42789.0,42788.0,0.2811812]
[1644216642676,0.26761116,42789.0,42788.0,0.2811812]
[1644216643273,0.26761116,42789.0,42788.0,0.2581812]
[1644216644072,0.26761116,42789.0,42788.0,0.2811812]
[1644216645374,0.26775205,42789.0,42788.0,0.2581812]
[1644216646026,0.26775205,42789.0,42788.0,0.27318881]
[1644216646723,0.26775205,42789.0,42788.0,0.023]
[1644216647324,0.26775205,42789.0,42787.0,0.08534638]
[1644216647526,0.26775205,42789.0,42788.0,0.25017545]
[1644216647724,0.26775205,42789.0,42787.0,0.08534638]
[1644216647926,0.26775205,42789.0,42788.0,0.26033772]
[1644216648125,0.26775205,42789.0,42788.0,0.28433772]
[1644216649425,0.26775205,42789.0,42788.0,0.26033772]
[1644216650074,0.26775205,42789.0,42788.0,0.28533772]
[1644216651472,0.26775205,42789.0,42788.0,0.26033772]
[1644216652073,0.26775205,42789.0,42788.0,0.28433772]
[1644216653926,0.26775205,42789.0,42788.0,0.26033772]
[1644216654127,0.26775205,42789.0,42788.0,0.28533772]
[1644216654629,0.26775205,42789.0,42788.0,0.025]
[1644216654828,0.26775205,42789.0,42788.0,0.28355904]
[1644216655029,0.26775205,42789.0,42788.0,0.025]
[1644216655428,0.26775205,42789.0,42787.0,0.38556011]
[1644216655831,0.26775205,42789.0,42788.0,0.25828833]
[1644216658073,0.24775205,42789.0,42788.0,0.28228833]
[1644216658873,0.24775205,42789.0,42788.0,0.58250206]
[1644216659474,0.24775205,42789.0,42788.0,0.55850206]
[1644216660074,0.24775205,42789.0,42788.0,0.58250206]
[1644216661323,0.24775205,42789.0,42788.0,0.25828833]
[1644216662122,0.24775205,42789.0,42788.0,0.27628833]
[1644216663323,0.24775205,42789.0,42788.0,0.25828833]
[1644216664227,0.24775205,42789.0,42788.0,0.018]
[1644216665382,0.24775205,42789.0,42787.0,0.67480738]
[1644216665682,0.24775205,42789.0,42788.0,0.25927179]
[1644216666182,0.24775205,42789.0,42787.0,0.439086]
[1644216667483,0.24775205,42789.0,42787.0,0.417086]
[1644216667682,0.00387032,42788.0,42787.0,0.417086]
[1644216667883,0.00387032,42788.0,42787.0,0.33540128]
[1644216668082,0.00387032,42788.0,42787.0,0.08883665]
[1644216668332,0.00387032,42788.0,42787.0,0.022]
[1644216668729,0.24775205,42789.0,42787.0,0.022]
[1644216669132,0.24775205,42789.0,42787.0,0.32242485]
[1644216669330,0.24775205,42789.0,42787.0,0.30042485]
[1644216669533,0.24775205,42789.0,42787.0,0.25040186]
[1644216669534,0.29775205,42789.0,42787.0,0.25040186]
[1644216669735,0.34775205,42789.0,42788.0,0.2003418]
[1644216669931,0.34775205,42789.0,42786.0,0.20075984]
[1644216669932,0.39455205,42789.0,42786.0,0.20075984]
[1644216670132,0.327077,42788.0,42787.0,0.014]
[1644216670331,0.373877,42788.0,42787.0,0.014]
[1644216671333,0.373877,42788.0,42786.0,0.00041804]
[1644216671537,0.45388849,42787.0,42786.0,0.00041804]
[1644216671735,1.23231791,42787.0,42786.0,0.00041804]
[1644216672178,1.25231791,42787.0,42786.0,0.00441804]
[1644216673379,1.23231791,42787.0,42786.0,0.00041804]
[1644216674179,1.26131791,42787.0,42786.0,0.00041804]
[1644216674779,1.21131791,42787.0,42786.0,0.00041804]
[1644216675378,1.18231791,42787.0,42786.0,0.00041804]
[1644216675824,1.13231791,42787.0,42786.0,0.00041804]
[1644216676024,0.373877,42787.0,42786.0,0.00041804]
[1644216676231,0.017,42787.0,42786.0,0.00041804]
[1644216676426,0.017,42787.0,42786.0,0.20075984]
[1644216676625,0.017,42787.0,42786.0,0.00041804]
[1644216676825,0.017,42787.0,42786.0,0.2508199]
[1644216677024,0.017,42787.0,42786.0,0.00041804]
[1644216678224,0.017,42787.0,42786.0,0.04941804]
[1644216679895,0.00683482,42787.0,42786.0,0.04941804]
[1644216680095,0.24761116,42789.0,42786.0,0.00041804]
[1644216680096,0.22273737,42789.0,42786.0,0.00041804]
[1644216680292,0.22273737,42789.0,42787.0,0.20022763]
[1644216680492,0.21773737,42789.0,42787.0,0.20022763]
[1644216680894,0.21773737,42789.0,42786.0,0.20064567]
[1644216680895,0.26773737,42789.0,42786.0,0.20064567]
[1644216681098,0.0468,42788.0,42786.0,0.00041804]
[1644216681295,0.327077,42787.0,42786.0,0.00041804]
[1644216681497,0.377077,42787.0,42786.0,0.00041804]
[1644216682093,0.398077,42787.0,42786.0,0.00041804]
[1644216682495,0.548077,42787.0,42786.0,0.00041804]
[1644216683330,0.83647005,42787.0,42786.0,0.00041804]
[1644216683928,0.81547005,42787.0,42786.0,0.00041804]
[1644216684132,0.583877,42787.0,42786.0,0.00941804]
[1644216685430,0.86919228,42787.0,42786.0,0.00041804]
[1644216686231,0.88519228,42787.0,42786.0,0.00041804]
[1644216687576,0.86919228,42787.0,42786.0,0.00041804]
[1644216687776,0.81919228,42787.0,42786.0,0.00041804]
[1644216688176,0.83519228,42787.0,42786.0,0.00041804]
[1644216689181,0.92515567,42787.0,42786.0,0.00041804]
[1644216689379,0.81919228,42787.0,42786.0,0.00041804]
[1644216690179,0.83519228,42787.0,42786.0,0.00041804]
[1644216690582,0.83519228,42787.0,42780.0,0.00065933]
[1644216690583,0.86733444,42786.0,42772.0,0.25040186]
[1644216690835,0.05,42776.0,42772.0,0.00019757]
[1644216691033,0.585,42773.0,42771.0,0.00020187]
[1644216691234,0.87109272,42772.0,42768.0,0.05]
[1644216691433,0.92109272,42772.0,42768.0,0.05]
[1644216691633,0.6,42769.0,42764.0,0.00020187]
[1644216691837,0.81791694,42768.0,42762.0,0.00020187]
[1644216692036,0.81791694,42768.0,42760.0,0.00020187]
[1644216692037,0.377077,42766.0,42760.0,0.00020187]
[1644216692232,0.0468,42765.0,42757.0,0.25060373]
[1644216692432,0.0468,42765.0,42754.0,0.4621996]
[1644216692433,0.0468,42765.0,42756.0,0.00020187]
[1644216692633,0.0468,42765.0,42759.0,0.0005031]
[1644216692832,0.2669964,42761.0,42759.0,0.0005031]
[1644216693035,0.0468,42760.0,42759.0,0.0005031]
[1644216693234,0.585,42767.0,42760.0,0.32114103]
[1644216693434,0.0468,42766.0,42760.0,0.32114103]
[1644216693635,0.0468,42766.0,42762.0,0.05]
[1644216693833,0.0468,42766.0,42760.0,0.57174476]
[1644216693834,0.0468,42766.0,42761.0,0.25109358]
[1644216694033,0.0468,42766.0,42764.0,0.25755874]
[1644216694233,0.0498,42766.0,42764.0,0.25755874]
[1644216694688,0.0498,42766.0,42765.0,0.17652601]
[1644216694689,0.003,42766.0,42765.0,0.17652601]
[1644216694887,0.003,42766.0,42765.0,0.17672788]
[1644216695083,0.30629909,42784.0,42765.0,0.22352788]
[1644216695285,0.00063011,42786.0,42770.0,0.05]
[1644216695484,0.21253292,42780.0,42771.0,0.52012984]
[1644216695684,0.21253292,42780.0,42771.0,0.48339083]
[1644216695884,0.21253292,42780.0,42771.0,0.4835927]
[1644216696085,0.21253292,42780.0,42771.0,0.26411503]
[1644216696286,0.21953292,42780.0,42773.0,0.00069158]
[1644216696488,0.327077,42779.0,42773.0,0.00069158]
[1644216696885,0.07851233,42778.0,42773.0,0.00069158]
[1644216697089,0.327077,42777.0,42773.0,0.00069158]
[1644216697286,0.327077,42777.0,42769.0,0.05]
[1644216697484,0.42164357,42778.0,42773.0,0.00069158]
[1644216697685,0.327077,42777.0,42773.0,0.00069158]
[1644216698331,0.333077,42777.0,42773.0,0.00069158]
[1644216698830,0.006,42777.0,42770.0,0.00020187]
[1644216699031,0.24472347,42773.0,42769.0,0.05]
[1644216699332,0.35318747,42773.0,42769.0,0.05]
[1644216700132,0.35818747,42773.0,42769.0,0.05]
[1644216700334,0.35818747,42773.0,42765.0,0.00020187]
[1644216700533,0.35818747,42773.0,42765.0,0.25010802]
[1644216700833,0.35818747,42773.0,42765.0,0.25030989]
[1644216701034,0.35818747,42773.0,42767.0,0.00050252]
[1644216701434,0.35318747,42773.0,42767.0,0.00050252]
[1644216702090,0.35318747,42773.0,42766.0,0.00020187]
[1644216702287,0.35718747,42773.0,42768.0,0.00069164]
[1644216703284,0.35718747,42773.0,42766.0,0.00020187]
[1644216703485,0.35318747,42773.0,42768.0,0.00069164]
[1644216704389,0.35718747,42773.0,42768.0,0.00069164]
[1644216704585,0.35718747,42773.0,42766.0,0.05]
[1644216704789,0.35718747,42773.0,42768.0,0.00069164]
[1644216705488,0.35318747,42773.0,42768.0,0.00069164]
[1644216705687,0.0001158,42772.0,42767.0,0.00020187]
[1644216705930,0.0001158,42772.0,42768.0,0.00069164]
[1644216706130,0.0031158,42772.0,42768.0,0.00069164]
[1644216707435,0.0001158,42772.0,42768.0,0.00069164]
[1644216708031,0.0001158,42772.0,42767.0,0.00020187]
[1644216708231,0.0041158,42772.0,42766.0,0.05020187]
[1644216708431,0.0041158,42772.0,42768.0,0.00069164]
[1644216709434,0.0001158,42772.0,42768.0,0.00050199]
[1644216710085,0.0001158,42772.0,42763.0,0.24581188]
[1644216710280,0.0061158,42772.0,42764.0,0.00020244]
[1644216710480,0.0061158,42772.0,42764.0,0.45710593]
[1644216710681,0.0061158,42772.0,42764.0,0.45730837]
[1644216710881,0.0061158,42772.0,42767.0,0.04570386]
[1644216711385,0.0001158,42772.0,42767.0,0.04570386]
[1644216711983,0.0001158,42772.0,42771.0,0.04570386]
[1644216712286,0.00601518,42772.0,42771.0,0.04570386]
[1644216712689,0.00601518,42772.0,42769.0,0.00020244]
[1644216712885,0.00601518,42772.0,42768.0,0.04570386]
[1644216713329,0.00601518,42772.0,42768.0,0.0459063]
[1644216713529,1.518e-05,42772.0,42768.0,0.0459063]
[1644216713930,1.518e-05,42772.0,42768.0,0.0409063]
[1644216714331,0.00701518,42772.0,42768.0,0.0409063]
[1644216714531,0.00701518,42772.0,42768.0,0.24101432]
[1644216714733,0.00701518,42772.0,42768.0,0.24081188]
[1644216715334,0.00701518,42772.0,42771.0,0.04070386]
[1644216715532,1.518e-05,42772.0,42771.0,0.04070386]
[1644216715734,0.00011145,42772.0,42771.0,0.04070386]
[1644216716335,0.00411145,42772.0,42771.0,0.04070386]
[1644216716735,0.00411145,42772.0,42770.0,0.0409063]
[1644216717091,0.00411145,42772.0,42770.0,0.04070386]
[1644216717286,0.00411145,42772.0,42770.0,0.0409063]
[1644216717686,0.00411145,42772.0,42770.0,0.04070386]
[1644216717890,0.00411145,42772.0,42770.0,0.03570386]
[1644216718086,0.00011145,42772.0,42770.0,0.03570386]
[1644216718288,0.00311145,42772.0,42770.0,0.03570386]
[1644216719590,0.00011145,42772.0,42770.0,0.03570386]
[1644216720191,0.00411145,42772.0,42769.0,0.00020244]
[1644216720395,0.00411145,42772.0,42768.0,0.20031046]
[1644216720593,0.00411145,42772.0,42768.0,0.00020244]
[1644216720831,0.01429614,42769.0,42768.0,0.00020244]
[1644216721033,0.00411145,42772.0,42768.0,0.00020244]
[1644216721234,0.00411145,42772.0,42767.0,0.20031046]
[1644216721535,0.00011145,42772.0,42767.0,0.20031046]
[1644216721734,0.00011145,42772.0,42767.0,0.00020244]
[1644216721933,0.00011145,42772.0,42766.0,0.20079934]
[1644216722133,0.116936,42771.0,42766.0,0.20079934]
[1644216722337,0.18123214,42771.0,42766.0,0.00069132]
[1644216722535,0.19491346,42768.0,42765.0,0.00020244]
[1644216722735,0.24491346,42768.0,42764.0,0.23581188]
[1644216723135,0.24491346,42768.0,42767.0,0.03570386]
[1644216723740,0.058467,42769.0,42767.0,0.03570386]
[1644216724337,0.064467,42769.0,42767.0,0.03570386]
[1644216724979,0.064467,42769.0,42767.0,0.0359063]
[1644216725584,0.064467,42769.0,42767.0,0.23601432]
[1644216725585,0.058467,42769.0,42767.0,0.23601432]
[1644216726382,0.066467,42769.0,42767.0,0.23581188]
[1644216726583,0.066467,42769.0,42768.0,0.20010802]
[1644216726782,0.066467,42769.0,42768.0,0.20031046]
[1644216726983,0.008,42769.0,42768.0,0.20031046]
[1644216727583,0.00010758,42771.0,42768.0,0.20031046]
[1644216728430,0.00710758,42771.0,42768.0,0.20031046]
[1644216728932,0.26377571,42774.0,42768.0,0.24896662]
[1644216729131,0.31377571,42774.0,42768.0,0.24876418]
[1644216729632,0.37223771,42774.0,42768.0,0.24876418]
[1644216729831,0.37160556,42774.0,42768.0,0.24876418]
[1644216730231,0.42160556,42774.0,42768.0,0.24876418]
[1644216730431,0.42823773,42774.0,42768.0,0.24876418]
[1644216730632,0.42823773,42774.0,42769.0,0.20010802]
[1644216730835,0.37823773,42774.0,42769.0,0.20031046]
[1644216731038,0.37760556,42774.0,42769.0,0.20031046]
[1644216731331,0.37823774,42774.0,42769.0,0.20031046]
[1644216731531,0.37223774,42774.0,42769.0,0.20031046]
[1644216732179,0.37160556,42774.0,42769.0,0.20031046]
[1644216732380,0.37823774,42774.0,42769.0,0.20031046]
[1644216732584,0.37823774,42774.0,42770.0,0.20010802]
[1644216732780,0.37823774,42774.0,42770.0,0.20031046]
[1644216732981,0.37823774,42774.0,42770.0,0.20010802]
[1644216733281,0.37760556,42774.0,42770.0,0.20010802]
[1644216733484,0.37160556,42774.0,42770.0,0.20010802]
[1644216733682,0.37223775,42774.0,42770.0,0.20010802]
[1644216734282,0.37823775,42774.0,42770.0,0.20010802]
[1644216734582,0.114462,42774.0,42770.0,0.20010802]
[1644216734781,0.11465166,42774.0,42771.0,0.20010802]
[1644216735481,0.10865166,42774.0,42771.0,0.20010802]
[1644216735682,0.00010357,42773.0,42771.0,0.20010802]
[1644216736331,0.00610357,42773.0,42771.0,0.20010802]
[1644216736733,0.00610357,42773.0,42770.0,0.00020244]
[1644216737032,0.00610357,42773.0,42769.0,0.00020244]
[1644216737232,0.00610357,42773.0,42771.0,0.20034118]
[1644216737435,0.00610357,42773.0,42771.0,0.20017791]
[1644216737633,0.00010357,42773.0,42771.0,0.20017791]
[1644216738432,0.00610357,42773.0,42771.0,0.20017791]
[1644216739132,0.00610357,42773.0,42770.0,0.00020244]
[1644216739332,0.00610357,42773.0,42769.0,0.25062892]
[1644216740181,0.00010357,42773.0,42769.0,0.25062892]
[1644216740381,0.00610357,42773.0,42769.0,0.25062892]
[1644216740583,0.00610357,42773.0,42770.0,0.25042648]
[1644216740784,0.00610357,42773.0,42770.0,0.25062892]
[1644216740982,0.00610357,42773.0,42770.0,0.25042648]
[1644216741185,0.00610357,42773.0,42771.0,0.25042648]
[1644216741489,0.00010357,42773.0,42772.0,0.25042648]
[1644216742285,0.00710357,42773.0,42772.0,0.25042648]
[1644216743531,0.00010357,42773.0,42772.0,0.25042648]
[1644216744332,0.00210357,42773.0,42772.0,0.25042648]
[1644216744732,0.00210357,42773.0,42771.0,0.25042648]
[1644216744933,0.00210357,42773.0,42769.0,0.25062892]
[1644216745131,0.00210357,42773.0,42768.0,0.04865616]
[1644216745132,0.06056957,42773.0,42770.0,0.25042648]
[1644216745332,0.06056957,42773.0,42769.0,0.25062892]
[1644216745532,0.05856957,42773.0,42769.0,0.25042648]
[1644216745733,0.05856957,42773.0,42769.0,0.25062892]
[1644216746334,0.06156957,42773.0,42769.0,0.25062892]
[1644216747395,0.06156957,42773.0,42771.0,0.20039306]
[1644216747597,0.05856957,42773.0,42771.0,0.20039306]
[1644216748396,0.06256957,42773.0,42771.0,0.20039306]
[1644216749598,0.05856957,42773.0,42771.0,0.20039306]
[1644216750202,0.05856957,42773.0,42770.0,0.20039306]
[1644216750401,0.05856957,42773.0,42769.0,0.00020244]
[1644216750402,0.06756957,42773.0,42769.0,0.20039306]
[1644216750704,0.00134384,42770.0,42769.0,0.00020244]
[1644216750935,0.00134384,42770.0,42768.0,0.20039306]
[1644216751536,0.00134384,42770.0,42767.0,0.20039306]
[1644216751736,0.00134384,42770.0,42767.0,0.2005955]
[1644216752134,0.20199098,42768.0,42767.0,0.2005955]
[1644216752335,0.25199098,42768.0,42767.0,0.2005955]
[1644216752835,0.25199098,42768.0,42767.0,0.20039306]
[1644216753436,0.25199098,42768.0,42766.0,0.25062892]
[1644216753637,0.24648239,42768.0,42766.0,0.25042648]
[1644216753834,0.24228239,42768.0,42766.0,0.25062892]
[1644216754034,0.24228239,42768.0,42766.0,0.25042648]
[1644216754235,0.24228239,42768.0,42766.0,0.25062892]
[1644216754434,0.25028239,42768.0,42766.0,0.25062892]
[1644216754687,0.25028239,42768.0,42766.0,0.00020244]
[1644216754883,0.25028239,42768.0,42765.0,0.25042648]
[1644216755085,0.04829141,42768.0,42765.0,0.25111665]
[1644216755284,0.008,42768.0,42767.0,0.04865616]
[1644216755486,0.008,42768.0,42767.0,0.29908264]
[1644216755685,0.00134384,42771.0,42767.0,0.25042648]
[1644216755686,0.00010331,42769.0,42767.0,0.25042648]
[1644216756084,0.00010331,42769.0,42768.0,0.25042648]
[1644216756284,0.00210331,42769.0,42768.0,0.25042648]
[1644216756785,0.00210331,42769.0,42768.0,0.25062892]
[1644216757182,0.00210331,42769.0,42768.0,0.25042648]
[1644216757583,0.00210331,42769.0,42767.0,0.25042648]
[1644216757784,0.00210331,42769.0,42767.0,0.25062892]
[1644216758186,0.00010331,42769.0,42767.0,0.25062892]
[1644216758435,0.00410331,42769.0,42767.0,0.25062892]
[1644216758636,0.00134384,42768.0,42767.0,0.00020244]
[1644216758835,0.05847,42770.0,42766.0,0.25111664]
[1644216758836,0.03534164,42770.0,42766.0,0.25111664]
[1644216759135,0.03534164,42770.0,42769.0,0.20037019]
[1644216760337,0.04434164,42770.0,42769.0,0.20037019]
[1644216761141,0.009,42770.0,42769.0,0.20037019]
[1644216761541,0.166942,42771.0,42769.0,0.20037019]
[1644216761942,0.05,42771.0,42769.0,0.20037019]
[1644216762183,0.05,42771.0,42770.0,0.20037019]
[1644216762386,0.004,42771.0,42770.0,0.20037019]
[1644216763681,0.00051268,42774.0,42770.0,0.20037973]
[1644216763882,0.00051268,42774.0,42771.0,0.20037973]
[1644216764283,0.00551268,42774.0,42771.0,0.20037973]
[1644216764482,0.058463,42773.0,42771.0,0.20037973]
[1644216764883,0.058463,42773.0,42769.0,0.20058217]
[1644216765087,0.0468,42772.0,42769.0,0.20037973]
[1644216765382,0.0968,42772.0,42768.0,0.20037973]
[1644216765583,0.40009015,42771.0,42768.0,0.20037973]
[1644216765841,0.0468994,42770.0,42769.0,8.187e-05]
[1644216766041,0.32869917,42770.0,42769.0,8.187e-05]
[1644216766241,0.37869917,42770.0,42769.0,0.00028407]
[1644216766442,0.48569917,42770.0,42769.0,8.187e-05]
[1644216766640,0.48569917,42770.0,42769.0,0.00028407]
[1644216766840,0.48569917,42770.0,42769.0,8.187e-05]
[1644216767041,0.48569917,42770.0,42769.0,0.00028407]
[1644216767242,0.48569917,42770.0,42769.0,8.187e-05]
[1644216767441,0.48569917,42770.0,42769.0,0.00028407]
[1644216767644,0.47869917,42770.0,42769.0,8.187e-05]
[1644216767940,0.47869917,42770.0,42769.0,0.00028407]
[1644216768140,0.47869917,42770.0,42769.0,8.187e-05]
[1644216768341,0.48369917,42770.0,42769.0,0.00028407]
[1644216768541,0.48369917,42770.0,42769.0,8.187e-05]
[1644216768741,0.48369917,42770.0,42769.0,0.00028407]
[1644216768942,0.48369917,42770.0,42769.0,8.187e-05]
[1644216769143,0.48369917,42770.0,42769.0,0.00028407]
[1644216769442,0.48369917,42770.0,42769.0,8.187e-05]
[1644216769689,0.47869917,42770.0,42769.0,0.00028407]
[1644216769895,0.15032363,42769.0,42767.0,0.0002022]
[1644216770089,0.15032363,42769.0,42766.0,0.00065939]
[1644216770090,0.673877,42768.0,42766.0,0.00065939]
[1644216770292,0.823877,42768.0,42766.0,0.00065939]
[1644216770490,0.327077,42767.0,42761.0,0.0002022]
[1644216770690,0.105288,42766.0,42765.0,0.00065866]
[1644216770889,1.25151416,42766.0,42765.0,0.00065866]
[1644216771088,1.25151416,42766.0,42759.0,0.0002022]
[1644216771291,1.25151416,42766.0,42758.0,0.5]
[1644216771292,0.05848877,42765.0,42758.0,0.5]
[1644216771488,0.05848877,42765.0,42758.0,0.5002022]
[1644216771489,0.0468,42764.0,42758.0,0.5002022]
[1644216772088,0.29827147,42763.0,42758.0,0.5002022]
[1644216772289,0.0468,42762.0,42760.0,0.22620511]
[1644216772990,0.0468,42762.0,42759.0,0.0002022]
[1644216773189,0.0468,42762.0,42758.0,0.5]
[1644216773444,0.0468,42762.0,42758.0,0.5002022]
[1644216773742,0.0468,42762.0,42758.0,0.5]
[1644216774445,0.0548,42762.0,42758.0,0.50069025]
[1644216774643,1.05,42761.0,42753.0,0.2994207]
[1644216774850,1.05,42761.0,42757.0,0.00020243]
[1644216774851,0.43237,42760.0,42757.0,0.00020243]
[1644216775045,0.585,42758.0,42746.0,0.0022]
[1644216775350,0.25100259,42751.0,42746.0,0.0022]
[1644216775545,0.24894523,42749.0,42746.0,0.0022]
[1644216775745,0.4619111,42748.0,42746.0,0.0011]
[1644216775946,0.15938772,42747.0,42746.0,0.0011]
[1644216776146,0.53326472,42747.0,42746.0,0.0011]
[1644216776546,0.380877,42747.0,42746.0,0.0011]
[1644216777193,0.0538,42747.0,42746.0,0.0011]